bitfinex-derivatives/quotes_BTCF0:USTF0_20250722
["timestamp","ask_amount","ask_price","bid_price","bid_amount"]
[1753191321394,0.03768629,119070.0,119060.0,1.5121274]
[1753191321705,0.03768629,119070.0,119060.0,1.1321274]
[1753191322092,0.04168629,119070.0,119060.0,1.1321274]
[1753191322400,0.04268629,119070.0,119060.0,1.1321274]
[1753191323800,0.04168629,119070.0,119060.0,1.4521274]
[1753191324001,0.04168629,119070.0,119060.0,1.1331274]
[1753191324298,0.02277395,119070.0,119060.0,1.15025993]
[1753191324600,0.02077395,119070.0,119060.0,1.49025993]
[1753191324893,0.0002,119080.0,119070.0,0.2498163]
[1753191325105,0.0002,119090.0,119080.0,0.2498022]
[1753191325296,0.2752171,119100.0,119090.0,0.2442481]
[1753191325492,0.2750171,119100.0,119090.0,1.37544155]
[1753191325691,0.1071746,119100.0,119090.0,1.37544155]
[1753191326097,0.2750086,119100.0,119090.0,1.37544155]
[1753191326297,0.2750086,119100.0,119090.0,0.34944155]
[1753191326499,0.2750086,119100.0,119090.0,1.01388155]
[1753191326898,0.2750086,119100.0,119090.0,1.37468155]
[1753191328100,0.2770086,119100.0,119090.0,1.37468155]
[1753191328300,0.2810086,119100.0,119090.0,1.37468155]
[1753191329306,0.1928386,119100.0,119090.0,1.7965251]
[1753191329508,0.1928386,119100.0,119090.0,1.38022155]
[1753191329694,0.75514215,119100.0,119090.0,0.23586345]
[1753191329900,0.75514215,119100.0,119090.0,1.03382155]
[1753191330109,0.75514215,119100.0,119090.0,1.03362155]
[1753191330305,0.3388386,119100.0,119090.0,1.03362155]
[1753191330607,0.75514215,119100.0,119090.0,1.03362155]
[1753191330807,0.3388386,119100.0,119090.0,1.39442155]
[1753191331106,0.3388386,119100.0,119090.0,1.42687155]
[1753191331506,0.00648,119110.0,119100.0,0.222104]
[1753191331695,0.80088595,119120.0,119110.0,0.0764]
[1753191331898,0.3138199,119110.0,119100.0,1.09592855]
[1753191332194,0.73012345,119110.0,119100.0,1.09592855]
[1753191333105,0.146,119110.0,119100.0,1.12837855]
[1753191333603,0.3138199,119110.0,119100.0,1.50952855]
[1753191334508,0.146,119110.0,119100.0,1.57641126]
[1753191334702,0.09645,119110.0,119100.0,1.88752136]
[1753191334902,0.002,119110.0,119100.0,1.99825481]
[1753191335499,0.09465,119120.0,119110.0,0.22209]
[1753191335699,0.09445,119120.0,119110.0,0.77002345]
[1753191335910,0.0004,119130.0,119120.0,0.2559659]
[1753191336212,0.0002,119130.0,119120.0,2.1411629]
[1753191336510,0.0002,119130.0,119120.0,1.7914029]
[1753191336706,0.0002,119130.0,119120.0,0.71573935]
[1753191336905,0.08837,119130.0,119120.0,1.1320429]
[1753191337104,0.08837,119130.0,119120.0,1.7911629]
[1753191337404,0.0002,119130.0,119120.0,1.1320429]
[1753191337604,0.0002,119130.0,119120.0,1.7911629]
[1753191337798,0.0002,119130.0,119120.0,1.37485935]
[1753191338004,0.0002,119130.0,119120.0,1.7911629]
[1753191338211,0.0002,119130.0,119120.0,1.7921629]
[1753191338718,0.0022,119130.0,119120.0,1.7921629]
[1753191339098,0.0002,119130.0,119120.0,1.7921629]
[1753191339303,0.1679919,119130.0,119120.0,1.1340429]
[1753191339508,0.72729545,119130.0,119120.0,0.3021159]
[1753191339700,1.03073545,119130.0,119120.0,0.002]
[1753191339907,1.03073545,119130.0,119120.0,0.8275259]
[1753191340411,0.2536319,119130.0,119120.0,0.8682159]
[1753191340606,0.08584,119130.0,119120.0,1.2615959]
[1753191340907,0.2099346,119140.0,119130.0,0.2465918]
[1753191340908,0.04414,119140.0,119130.0,0.2465918]
[1753191341108,0.0002,119150.0,119140.0,0.2465778]
[1753191341309,0.01873343,119160.0,119150.0,0.35175715]
[1753191341510,0.08584,119170.0,119160.0,0.2465497]
[1753191341709,0.08564,119170.0,119160.0,1.7864067]
[1753191341909,0.2533756,119170.0,119160.0,1.1288467]
[1753191342105,0.04394,119170.0,119160.0,2.00077325]
[1753191342304,0.0002,119180.0,119170.0,0.2465355]
[1753191342506,0.04414,119190.0,119180.0,0.2465215]
[1753191342707,0.08584,119200.0,119190.0,0.2409774]
[1753191342913,0.2533333,119200.0,119190.0,1.02361095]
[1753191343208,0.08564,119200.0,119190.0,1.40361095]
[1753191343413,0.0002,119210.0,119200.0,0.2464933]
[1753191343610,0.2533193,119210.0,119200.0,1.73315675]
[1753191343814,0.08564,119210.0,119200.0,2.1494603]
[1753191344015,0.08564,119210.0,119200.0,1.7794603]
[1753191344617,0.08564,119210.0,119200.0,1.36315675]
[1753191345003,0.2553193,119210.0,119200.0,1.00175675]
[1753191345308,0.08764,119210.0,119200.0,1.36235675]
[1753191345508,0.002,119210.0,119200.0,2.1041903]
[1753191345709,0.002,119210.0,119200.0,1.4487903]
[1753191345908,0.0002,119220.0,119210.0,0.26324893]
[1753191346116,0.2954097,119230.0,119220.0,0.2083552]
[1753191346309,0.2532969,119230.0,119220.0,1.2241152]
[1753191346510,0.2532912,119230.0,119220.0,1.2241152]
[1753191346705,0.66959475,119230.0,119220.0,1.01576]
[1753191346914,0.2532912,119230.0,119220.0,0.8226252]
[1753191347218,0.67159475,119230.0,119220.0,0.8226252]
[1753191347813,0.2552912,119230.0,119220.0,0.8226252]
[1753191348605,0.2582912,119230.0,119220.0,0.8226252]
[1753191348914,0.2533052,119220.0,119210.0,0.66042433]
[1753191349213,1.03040875,119220.0,119210.0,0.01676963]
[1753191349510,0.66960875,119220.0,119210.0,0.01676963]
[1753191349710,0.66960875,119220.0,119210.0,0.18444893]
[1753191349914,0.66960875,119220.0,119210.0,0.01676963]
[1753191350108,1.03040875,119220.0,119210.0,0.01676963]
[1753191350814,1.03240875,119220.0,119210.0,0.01676963]
[1753191352716,1.03340875,119220.0,119210.0,0.01676963]
[1753191353618,1.68432875,119220.0,119210.0,0.01676963]
[1753191353809,1.03340875,119220.0,119210.0,0.01676963]
[1753191354012,1.68424875,119220.0,119210.0,0.01676963]
[1753191355218,1.03340875,119220.0,119210.0,0.01676963]
[1753191355417,1.05083174,119220.0,119210.0,0.18444913]
[1753191355720,1.03340875,119220.0,119210.0,0.01676963]
[1753191356514,0.67260875,119220.0,119210.0,0.18444913]
[1753191356916,1.03340875,119220.0,119210.0,0.18444913]
[1753191357118,0.67260875,119220.0,119210.0,0.18444913]
[1753191358424,0.2563052,119220.0,119210.0,0.18444913]
[1753191358716,0.67260875,119220.0,119210.0,0.22513913]
[1753191359021,0.08864,119220.0,119210.0,0.67402268]
[1753191359221,0.2563054,119220.0,119210.0,0.77921613]
[1753191359419,0.2563054,119220.0,119210.0,0.36291258]
[1753191359610,0.05358,119220.0,119210.0,0.42416258]
[1753191359813,0.2212454,119220.0,119210.0,0.42416258]
[1753191360211,0.2922654,119220.0,119210.0,0.14594963]
[1753191360412,0.2533476,119190.0,119180.0,0.07327]
[1753191360617,1.03045115,119190.0,119180.0,0.04069]
[1753191360817,0.2533617,119180.0,119170.0,0.2084249]
[1753191361213,0.66966525,119180.0,119170.0,0.31361835]
[1753191361522,1.03046525,119180.0,119170.0,0.1677349]
[1753191362523,0.2533757,119170.0,119160.0,1.014657]
[1753191362719,0.2533757,119170.0,119160.0,1.11985045]
[1753191362920,0.2533757,119170.0,119160.0,1.536154]
[1753191363518,0.08564,119170.0,119160.0,1.896954]
[1753191363717,0.337438,119180.0,119170.0,0.2410057]
[1753191363919,0.337238,119180.0,119170.0,1.1263027]
[1753191364223,0.337238,119180.0,119170.0,0.34919915]
[1753191364417,0.337238,119180.0,119170.0,0.34619915]
[1753191365018,0.337238,119180.0,119170.0,0.14588345]
[1753191365219,0.2533757,119170.0,119160.0,0.3618]
[1753191365424,1.03047925,119170.0,119160.0,0.001]
[1753191365614,0.66967925,119170.0,119160.0,0.001]
[1753191365923,1.03047925,119170.0,119160.0,0.001]
[1753191366619,0.66967925,119170.0,119160.0,0.001]
[1753191366825,0.2533757,119170.0,119160.0,0.1687498]
[1753191367028,0.66967925,119170.0,119160.0,0.1687498]
[1753191367223,0.2533757,119170.0,119160.0,1.1273168]
[1753191367722,0.08664,119170.0,119160.0,1.1233168]
[1753191367929,0.01387,119170.0,119160.0,1.1233168]
[1753191368524,0.01287,119170.0,119160.0,0.70801325]
[1753191368715,0.01287,119170.0,119160.0,1.1253168]
[1753191369120,0.01253,119180.0,119170.0,0.2416057]
[1753191369315,0.0296,119190.0,119180.0,0.2415916]
[1753191369316,0.08368,119190.0,119180.0,0.2415916]
[1753191369520,0.08348,119190.0,119180.0,0.6023916]
[1753191369726,0.08348,119190.0,119180.0,1.1238886]
[1753191369925,0.04193,119190.0,119180.0,1.1238886]
[1753191370121,0.01233,119190.0,119180.0,1.1238886]
[1753191370325,0.10268765,119200.0,119190.0,0.2415776]
[1753191370523,0.10248765,119200.0,119190.0,1.7689946]
[1753191370724,0.12006333,119200.0,119190.0,1.35269105]
[1753191371723,0.12006333,119200.0,119190.0,1.2474976]
[1753191372026,0.01757568,119200.0,119190.0,1.7689946]
[1753191372217,0.01757568,119200.0,119190.0,1.1238746]
[1753191372422,1.04585273,119200.0,119190.0,0.27290105]
[1753191372617,0.2092576,119190.0,119180.0,0.10054732]
[1753191372824,0.26876328,119190.0,119180.0,0.33152757]
[1753191373528,0.26876702,119190.0,119180.0,0.37444757]
[1753191374227,0.26876702,119190.0,119180.0,0.33252017]
[1753191374525,0.62956702,119190.0,119180.0,0.33252677]
[1753191374724,1.04587057,119190.0,119180.0,0.01669172]
[1753191374929,0.2512016,119180.0,119170.0,0.1677345]
[1753191375125,0.2512016,119180.0,119170.0,0.27292795]
[1753191375328,0.62957914,119180.0,119170.0,0.27292795]
[1753191375520,0.6120016,119180.0,119170.0,0.27292795]
[1753191375724,0.6120016,119180.0,119170.0,0.10519345]
[1753191376024,0.6120016,119180.0,119170.0,0.27292915]
[1753191376329,1.02830515,119180.0,119170.0,0.1677357]
[1753191376722,0.6120016,119180.0,119170.0,0.1677357]
[1753191376924,0.2512016,119180.0,119170.0,0.1677357]
[1753191377829,0.2512016,119180.0,119170.0,0.1687357]
[1753191378020,0.6120016,119180.0,119170.0,0.1687357]
[1753191378431,0.2512016,119180.0,119170.0,0.1687357]
[1753191379133,0.1677216,119180.0,119170.0,1.1249027]
[1753191379834,0.58859415,119190.0,119170.0,1.1249027]
[1753191379835,0.71438245,119190.0,119180.0,0.1677216]
[1753191380032,0.71418245,119190.0,119180.0,0.8844716]
[1753191380233,0.71418245,119190.0,119180.0,0.98966505]
[1753191380424,0.10180555,119190.0,119180.0,1.35046505]
[1753191380830,0.26951315,119190.0,119180.0,1.4059686]
[1753191381029,0.26951315,119190.0,119180.0,0.98966505]
[1753191381424,0.10280555,119190.0,119180.0,0.98966505]
[1753191381634,0.27051315,119190.0,119180.0,1.34986505]
[1753191381935,0.27051315,119190.0,119180.0,0.98906505]
[1753191382732,0.63131315,119190.0,119180.0,0.98906505]
[1753191383136,0.63031315,119190.0,119180.0,0.99006505]
[1753191383337,0.26951315,119190.0,119180.0,0.99006505]
[1753191384243,0.28730133,119190.0,119180.0,0.99006505]
[1753191385339,0.64810133,119190.0,119180.0,0.99006505]
[1753191385534,0.28730133,119190.0,119180.0,0.99006505]
[1753191386637,0.11959373,119190.0,119180.0,1.7671686]
[1753191386845,0.03611373,119190.0,119180.0,1.7671686]
[1753191387246,0.01832555,119190.0,119180.0,1.7671686]
[1753191387838,0.18603305,119190.0,119180.0,1.7671686]
[1753191388035,0.18603305,119190.0,119180.0,1.35086505]
[1753191388234,0.26951305,119190.0,119180.0,0.99006505]
[1753191388441,0.26951315,119190.0,119180.0,1.7671686]
[1753191388645,0.28731066,119190.0,119180.0,1.7671686]
[1753191388845,0.26951315,119190.0,119180.0,1.7671686]
[1753191389245,0.28711201,119190.0,119180.0,1.7671686]
[1753191389447,0.26951315,119190.0,119180.0,1.7671686]
[1753191389643,0.28711475,119190.0,119180.0,1.7671686]
[1753191390046,0.28711475,119190.0,119180.0,1.4063686]
[1753191390746,0.28711475,119190.0,119180.0,0.99006505]
[1753191390947,0.28711475,119190.0,119180.0,1.4063686]
[1753191391351,0.26951315,119190.0,119180.0,0.99006505]
[1753191391751,0.26951315,119190.0,119180.0,1.4063686]
[1753191391952,0.27575315,119190.0,119180.0,1.4063686]
[1753191392152,0.27575315,119190.0,119180.0,1.4558186]
[1753191392348,0.27575315,119190.0,119180.0,1.8166186]
[1753191392853,0.27575315,119190.0,119180.0,1.4558186]
[1753191393053,0.27575315,119190.0,119180.0,1.8166186]
[1753191393250,0.0002,119200.0,119190.0,0.2910276]
[1753191393453,0.2576107,119210.0,119200.0,0.2910135]
[1753191393650,0.27501063,119210.0,119200.0,1.03360695]
[1753191394049,0.27501063,119210.0,119200.0,1.39440695]
[1753191394252,0.27501063,119210.0,119200.0,1.03360695]
[1753191394448,0.01759993,119210.0,119200.0,1.7612605]
[1753191395354,0.08368,119220.0,119210.0,0.2415494]
[1753191395656,0.26874142,119220.0,119210.0,1.41230289]
[1753191395950,1.04584497,119220.0,119210.0,0.97739289]
[1753191396146,0.68504497,119220.0,119210.0,0.97739289]
[1753191396550,0.26874142,119220.0,119210.0,0.97739289]
[1753191396852,0.68504497,119220.0,119210.0,0.97739289]
[1753191397053,0.32289142,119220.0,119210.0,0.97739289]
[1753191397252,0.73919497,119220.0,119210.0,1.02031289]
[1753191397455,0.74119497,119220.0,119210.0,1.02031289]
[1753191397750,0.3053094,119210.0,119200.0,0.3428989]
[1753191397944,0.32290542,119210.0,119200.0,1.08417235]
[1753191398149,0.32290542,119210.0,119200.0,1.15804235]
[1753191398549,0.15522602,119210.0,119200.0,1.5743459]
[1753191398751,0.01759602,119210.0,119200.0,1.9351459]
[1753191399058,0.18527542,119210.0,119200.0,1.9351459]
[1753191399258,0.19784542,119210.0,119200.0,1.51884235]
[1753191399758,0.22777542,119210.0,119200.0,1.15804235]
[1753191399958,0.22777542,119210.0,119200.0,1.51884235]
[1753191400453,0.06109602,119210.0,119200.0,1.51884235]
[1753191400658,0.001,119210.0,119200.0,1.9351459]
[1753191401555,0.0002,119220.0,119210.0,0.2861494]
[1753191401756,0.2642568,119230.0,119220.0,0.2144754]
[1753191401956,0.01758771,119230.0,119220.0,1.69767895]
[1753191402148,0.01758771,119230.0,119220.0,2.1528724]
[1753191402351,0.0002,119240.0,119220.0,1.945207]
[1753191402550,0.1678372,119240.0,119230.0,0.75211475]
[1753191402755,0.2576272,119240.0,119230.0,0.75211475]
[1753191403257,0.2576272,119240.0,119230.0,0.39131475]
[1753191403658,0.2576272,119240.0,119230.0,1.02559475]
[1753191403860,0.2576272,119240.0,119230.0,1.38639475]
[1753191403861,0.08999,119240.0,119230.0,1.38639475]
[1753191404061,0.09199,119240.0,119230.0,1.38639475]
[1753191404259,0.002,119240.0,119230.0,1.87130873]
[1753191404459,0.004,119240.0,119230.0,1.87130873]
[1753191404654,0.004,119240.0,119230.0,2.22130873]
[1753191404848,0.0002,119250.0,119240.0,0.2861072]
[1753191405048,0.0427,119260.0,119250.0,0.2860932]
[1753191405255,0.01257,119260.0,119250.0,1.8026302]
[1753191405559,0.1801791,119260.0,119250.0,1.38632665]
[1753191405760,0.2163691,119260.0,119250.0,1.38632665]
[1753191406059,0.2575991,119260.0,119250.0,1.38632665]
[1753191406758,0.2605991,119260.0,119250.0,1.38632665]
[1753191407060,0.1947532,119250.0,119240.0,0.700188]
[1753191407261,1.7847432,119250.0,119240.0,1.07846145]
[1753191407655,0.2214372,119240.0,119230.0,0.01706762]
[1753191407854,1.02847075,119240.0,119230.0,0.01706762]
[1753191410257,1.02947075,119240.0,119230.0,0.01706762]
[1753191410957,1.03047075,119240.0,119230.0,0.01706762]
[1753191411457,1.03047075,119240.0,119230.0,0.01690524]
[1753191412861,0.6673272,119240.0,119230.0,0.18455654]
[1753191413060,1.08363075,119240.0,119230.0,0.18455654]
[1753191413453,0.6673272,119240.0,119230.0,0.18455654]
[1753191413655,0.6673272,119240.0,119230.0,0.25302654]
[1753191414160,1.08363075,119240.0,119230.0,0.04423524]
[1753191414361,1.10112146,119240.0,119230.0,0.04423524]
[1753191414861,0.68481791,119240.0,119230.0,0.01690524]
[1753191415056,1.10112146,119240.0,119230.0,0.01690524]
[1753191415560,1.10112146,119240.0,119230.0,0.64958524]
[1753191416564,0.32401791,119240.0,119230.0,0.88638654]
[1753191418564,0.32401791,119240.0,119230.0,0.8694813]
[1753191419059,1.10112149,119240.0,119230.0,0.06923]
[1753191419265,1.10112149,119240.0,119230.0,0.70071]
[1753191419567,0.32401794,119240.0,119230.0,0.8683613]
[1753191419864,0.74032149,119240.0,119230.0,0.8683613]
[1753191420065,0.32401794,119240.0,119230.0,0.8683613]
[1753191420255,0.2793972,119240.0,119230.0,1.64546485]
[1753191420461,0.2793972,119240.0,119230.0,1.2296313]
[1753191420760,0.2793972,119240.0,119230.0,1.2291613]
[1753191420960,0.0445,119240.0,119230.0,1.64593485]
[1753191421157,0.03193,119240.0,119230.0,1.66324303]
[1753191421466,0.1995672,119240.0,119230.0,1.70834948]
[1753191421964,0.03193,119240.0,119230.0,1.70834948]
[1753191422161,0.1995672,119240.0,119230.0,1.07686948]
[1753191422358,0.1995672,119240.0,119230.0,1.24637948]
[1753191422559,0.03193,119240.0,119230.0,1.66268303]
[1753191422754,0.03013,119250.0,119230.0,2.19552548]
[1753191422959,0.0002,119250.0,119240.0,1.01321075]
[1753191423162,0.03013,119260.0,119250.0,0.2360932]
[1753191423455,0.0427,119270.0,119260.0,0.2360791]
[1753191423655,0.0425,119270.0,119260.0,1.01318265]
[1753191423958,0.02993,119270.0,119260.0,1.01318265]
[1753191424363,0.02993,119270.0,119260.0,1.32585265]
[1753191424567,0.03023,119280.0,119270.0,0.2087351]
[1753191424757,0.03003,119280.0,119270.0,1.61639865]
[1753191425160,0.197611,119280.0,119270.0,1.61639865]
[1753191425356,0.251411,119280.0,119270.0,0.27430751]
[1753191425565,0.66771455,119280.0,119270.0,0.2087351]
[1753191425868,0.2513251,119270.0,119260.0,0.22540799]
[1753191426371,0.2513251,119270.0,119260.0,0.85612799]
[1753191426570,0.6121251,119270.0,119260.0,0.64725889]
[1753191426757,0.6121251,119270.0,119260.0,0.81486799]
[1753191426758,1.02842865,119270.0,119260.0,0.81486799]
[1753191426963,0.66762865,119270.0,119260.0,0.81486799]
[1753191427157,1.02842865,119270.0,119260.0,0.64721889]
[1753191427373,1.02842865,119270.0,119260.0,0.64821889]
[1753191427871,1.02842865,119270.0,119260.0,0.81582799]
[1753191428367,0.6121251,119270.0,119260.0,0.81582799]
[1753191429561,0.2533251,119270.0,119260.0,0.86154799]
[1753191429967,0.2533251,119270.0,119260.0,1.22234799]
[1753191430156,0.2513251,119270.0,119260.0,0.86154799]
[1753191430364,0.2513251,119270.0,119260.0,1.22334799]
[1753191431064,0.0425,119270.0,119260.0,1.63965154]
[1753191431272,0.02993,119270.0,119260.0,1.63965154]
[1753191431968,0.02993,119270.0,119260.0,1.96965154]
[1753191432178,0.0658654,119280.0,119270.0,0.2133151]
[1753191432364,0.2332464,119280.0,119270.0,0.5741151]
[1753191432566,0.2762764,119280.0,119270.0,0.5741151]
[1753191433269,0.3600721,119280.0,119270.0,0.1675951]
[1753191433477,0.1675951,119270.0,119260.0,0.06237889]
[1753191433770,0.1675951,119270.0,119200.0,0.04572]
[1753191433771,0.1676794,119210.0,119200.0,0.04572]
[1753191434076,0.6182494,119210.0,119200.0,0.04572]
[1753191434271,1.03455295,119210.0,119200.0,0.04572]
[1753191434568,0.2144194,119210.0,119200.0,0.5742135]
[1753191434969,0.03394,119210.0,119200.0,0.99751705]
[1753191435174,0.03394,119210.0,119200.0,1.62855705]
[1753191435568,0.2437247,119220.0,119210.0,0.2133994]
[1753191435867,0.2435247,119220.0,119210.0,0.5741994]
[1753191436261,0.2435247,119220.0,119210.0,0.62970295]
[1753191436461,0.2993547,119220.0,119210.0,0.2133994]
[1753191436666,0.2993547,119220.0,119210.0,0.04572]
[1753191437168,0.6601547,119220.0,119210.0,0.2173994]
[1753191437470,1.07645825,119220.0,119210.0,0.04972]
[1753191437671,1.07645825,119220.0,119210.0,0.004]
[1753191438363,0.2446494,119210.0,119200.0,0.6201268]
[1753191438670,0.2574494,119210.0,119200.0,0.5782037]
[1753191438876,0.2574494,119210.0,119200.0,0.2174037]
[1753191440069,0.2574494,119210.0,119200.0,0.5782037]
[1753191440269,0.08977,119210.0,119200.0,0.5812037]
[1753191440471,0.2574494,119210.0,119200.0,0.5812037]
[1753191441069,0.2574494,119210.0,119200.0,0.5772037]
[1753191441674,1.03455295,119210.0,119200.0,0.003]
[1753191441868,1.66399295,119210.0,119200.0,0.003]
[1753191442066,1.66399295,119210.0,119200.0,0.005]
[1753191442270,1.66399295,119210.0,119180.0,0.64622315]
[1753191442271,0.2446776,119190.0,119180.0,0.64622315]
[1753191442470,1.03458115,119190.0,119180.0,0.01678315]
[1753191442671,1.03458115,119190.0,119180.0,0.18450475]
[1753191442871,0.6182776,119190.0,119180.0,0.01678315]
[1753191443071,0.6182776,119190.0,119180.0,0.18450475]
[1753191443376,0.6182776,119190.0,119180.0,0.01678315]
[1753191443876,0.6182776,119190.0,119180.0,0.07691077]
[1753191444178,1.03458115,119190.0,119180.0,0.07691077]
[1753191444870,1.03458115,119190.0,119180.0,0.08091077]
[1753191445272,1.66410115,119190.0,119180.0,0.08091077]
[1753191445571,1.66410115,119190.0,119180.0,0.01572762]
[1753191445771,1.66410115,119190.0,119180.0,0.00189762]
[1753191446080,0.2575057,119170.0,119160.0,0.1979832]
[1753191446378,0.6183057,119170.0,119160.0,0.1979832]
[1753191446872,0.2447057,119170.0,119160.0,0.2659532]
[1753191447177,0.67380925,119170.0,119160.0,0.0759534]
[1753191447376,0.6183057,119170.0,119160.0,0.0809534]
[1753191447581,0.2575057,119170.0,119160.0,0.2487032]
[1753191447767,0.2575057,119170.0,119160.0,0.2517032]
[1753191448878,0.2447057,119170.0,119160.0,0.2739532]
[1753191449372,0.2447057,119170.0,119160.0,0.6125032]
[1753191450276,0.67380925,119170.0,119160.0,0.0382334]
[1753191450481,0.67380925,119170.0,119160.0,0.0249034]
[1753191450877,0.2575057,119170.0,119160.0,0.1926532]
[1753191451180,0.2575057,119170.0,119160.0,0.2059832]
[1753191451380,0.2575057,119170.0,119160.0,0.0382334]
[1753191451582,0.2575057,119170.0,119160.0,0.2059832]
[1753191451981,0.2575057,119170.0,119160.0,0.0382334]
[1753191452478,1.03460925,119170.0,119160.0,0.0249034]
[1753191452683,1.03460925,119170.0,119160.0,0.008]
[1753191454684,1.03460925,119170.0,119160.0,0.005]
[1753191454885,1.03460925,119170.0,119160.0,0.006]
[1753191455779,1.05331865,119170.0,119160.0,0.006]
[1753191456180,1.05331865,119170.0,119160.0,0.002]
[1753191456782,0.69251865,119170.0,119160.0,0.1697498]
[1753191457086,0.9064551,119170.0,119160.0,0.2287998]
[1753191457586,0.0187094,119170.0,119160.0,1.02815335]
[1753191458087,0.0526494,119170.0,119160.0,1.02815335]
[1753191458584,0.0526494,119170.0,119160.0,0.6118498]
[1753191458785,0.2203851,119170.0,119160.0,0.6118498]
[1753191458985,0.0526494,119170.0,119160.0,0.6118498]
[1753191459286,0.0187094,119170.0,119160.0,1.02815335]
[1753191460188,0.2214651,119170.0,119160.0,1.02815335]
[1753191460790,0.0537294,119170.0,119160.0,1.02815335]
[1753191461285,0.2214651,119170.0,119160.0,0.6118498]
[1753191461486,0.1015094,119170.0,119160.0,0.2287998]
[1753191461700,0.2692451,119170.0,119160.0,0.2287998]
[1753191462087,0.6445151,119170.0,119160.0,0.2287998]
[1753191462288,0.2837151,119170.0,119160.0,0.1697498]
[1753191462687,0.2837151,119170.0,119160.0,0.1841298]
[1753191463193,1.69057865,119170.0,119160.0,0.002]
[1753191463986,1.85841065,119170.0,119160.0,0.002]
[1753191464190,1.85841065,119170.0,119130.0,0.5181236]
[1753191464191,0.2650479,119140.0,119130.0,0.6268592]
[1753191464391,0.2650479,119140.0,119130.0,0.6746792]
[1753191464684,0.2505779,119140.0,119130.0,0.6746792]
[1753191464988,0.2505779,119140.0,119130.0,0.7002892]
[1753191465693,0.2505779,119140.0,119130.0,0.6746792]
[1753191465890,0.2505779,119140.0,119130.0,0.6796792]
[1753191468097,0.2650479,119140.0,119130.0,0.5957856]
[1753191468499,0.2505779,119140.0,119130.0,0.5957856]
[1753191468686,0.2505779,119140.0,119130.0,0.5987856]
[1753191469497,0.3122179,119140.0,119130.0,0.6590256]
[1753191470188,0.3266879,119140.0,119130.0,0.6590256]
[1753191472395,0.3266881,119140.0,119130.0,0.6590256]
[1753191472599,0.3122181,119140.0,119130.0,0.6846356]
[1753191473594,0.03502,119140.0,119130.0,1.45093915]
[1753191473802,0.03522,119150.0,119140.0,0.3158281]
[1753191473998,0.2993783,119160.0,119150.0,0.228004]
[1753191474198,0.34064089,119160.0,119150.0,0.676614]
[1753191474394,0.37285089,119160.0,119150.0,0.290204]
[1753191474594,0.229404,119150.0,119140.0,0.3538334]
[1753191474789,0.312204,119150.0,119140.0,0.4160334]
[1753191475100,0.70596363,119150.0,119140.0,0.2631673]
[1753191475292,0.687474,119150.0,119140.0,0.2631673]
[1753191475497,0.7059853,119150.0,119140.0,0.2631673]
[1753191476198,0.7059853,119150.0,119140.0,0.3109873]
[1753191476500,0.312204,119150.0,119140.0,0.6959473]
[1753191477099,0.14444,119150.0,119140.0,0.6959473]
[1753191477398,0.312204,119150.0,119140.0,1.13786085]
[1753191477693,0.14444,119150.0,119140.0,1.14086085]
[1753191477898,0.312204,119150.0,119140.0,1.14086085]
[1753191478201,0.14444,119150.0,119140.0,1.14086085]
[1753191478401,0.29842998,119150.0,119140.0,1.14086085]
[1753191478902,0.13066598,119150.0,119140.0,1.14086085]
[1753191479100,0.29842998,119150.0,119140.0,1.14086085]
[1753191479801,0.13066598,119150.0,119140.0,1.14086085]
[1753191480001,0.29842998,119150.0,119140.0,1.14086085]
[1753191480402,0.13066598,119150.0,119140.0,1.14086085]
[1753191481101,0.0002,119160.0,119150.0,0.197284]
[1753191481307,0.12010168,119170.0,119150.0,1.93086225]
[1753191481501,0.12010168,119170.0,119160.0,1.00509355]
[1753191481806,0.29432758,119170.0,119160.0,0.67571]
[1753191482501,0.31706758,119170.0,119160.0,0.67571]
[1753191482797,0.72454758,119170.0,119160.0,0.29019]
[1753191482998,0.72454758,119170.0,119160.0,0.02094]
[1753191483303,1.14085113,119170.0,119160.0,0.17431]
[1753191483495,0.2227,119160.0,119150.0,0.9520315]
[1753191483698,0.33058228,119160.0,119150.0,1.0057115]
[1753191484402,0.33058228,119160.0,119150.0,1.3665115]
[1753191484602,0.33058228,119160.0,119150.0,1.0057115]
[1753191484800,0.33058228,119160.0,119150.0,1.0037115]
[1753191485201,0.33058228,119160.0,119150.0,1.0284315]
[1753191485504,0.33058228,119160.0,119150.0,1.0283115]
[1753191485699,0.33058228,119160.0,119150.0,1.0303115]
[1753191486206,0.70585228,119160.0,119150.0,0.9216725]
[1753191486706,0.33058228,119160.0,119150.0,0.9216725]
[1753191486894,0.33058228,119160.0,119150.0,0.9463925]
[1753191487295,0.33058228,119160.0,119150.0,0.3169125]
[1753191487494,0.33058228,119160.0,119150.0,0.9216325]
[1753191487704,0.34505228,119160.0,119150.0,0.9216325]
[1753191487895,0.70585228,119160.0,119150.0,0.2921925]
[1753191488095,0.34505228,119160.0,119150.0,0.9216325]
[1753191488302,0.17730228,119160.0,119150.0,0.9216325]
[1753191488503,0.16283228,119160.0,119150.0,0.9460225]
[1753191488703,0.31219,119160.0,119150.0,1.3068225]
[1753191488899,0.16283721,119160.0,119150.0,1.3068225]
[1753191489105,0.03502,119160.0,119150.0,1.72312605]
[1753191489305,0.20277,119160.0,119150.0,1.72312605]
[1753191489505,0.24791,119160.0,119150.0,0.9460225]
[1753191489806,0.29476709,119160.0,119150.0,0.9480225]
[1753191490000,0.32374709,119160.0,119150.0,0.9480225]
[1753191490206,0.32374727,119160.0,119150.0,1.3088225]
[1753191490406,0.30535,119160.0,119150.0,1.3088225]
[1753191490608,0.1376,119160.0,119150.0,1.3088225]
[1753191490807,0.03502,119160.0,119150.0,1.42568605]
[1753191491013,0.0002,119170.0,119160.0,0.31219]
[1753191491209,0.03522,119180.0,119170.0,0.3121759]
[1753191491409,0.26627726,119180.0,119170.0,1.3022959]
[1753191491611,0.27290726,119180.0,119170.0,1.3022959]
[1753191491908,0.29473726,119180.0,119170.0,1.3022959]
[1753191492109,0.32371726,119180.0,119170.0,0.6485859]
[1753191492311,0.69784726,119180.0,119170.0,0.9171059]
[1753191492606,0.69784726,119180.0,119170.0,1.2779059]
[1753191492607,0.33704726,119180.0,119170.0,1.2779059]
[1753191493718,0.33704726,119180.0,119170.0,0.9171059]
[1753191494114,0.15599546,119180.0,119170.0,1.35779945]
[1753191494323,0.32471726,119180.0,119170.0,1.71859945]
[1753191494524,0.15699546,119180.0,119170.0,1.3022959]
[1753191494825,0.3063218,119180.0,119170.0,1.3022959]
[1753191495022,0.1386,119180.0,119170.0,1.3022959]
[1753191495216,0.01939048,119180.0,119170.0,1.71859945]
[1753191495518,0.001,119180.0,119170.0,1.71859945]
[1753191495725,0.2037418,119180.0,119170.0,1.3022959]
[1753191495922,0.2488818,119180.0,119170.0,1.3022959]
[1753191496223,0.2555118,119180.0,119170.0,1.3022959]
[1753191496819,0.08116,119180.0,119170.0,1.71859945]
[1753191497024,0.001,119180.0,119170.0,1.71859945]